[Event "Elitserien 2019/2020, round 1-3"]
[Site "Uppsala University, Gamla torget, Uppsala, Sweden"]
[Date "2019.10.20"]
[Round "3.9"]
[White "Westerberg, Jonathan"]
[Black "Sagit, Rauan"]
[Result "1-0"]
[TimeControl "90 minutes for 40 moves + 30 minutes for the rest of the game + 30 seconds per move from move one."]
[WhiteTitle "IM"]
[BlackTitle "IM"]
[WhiteFideId "1701754"]
[BlackFideId "1708376"]
[WhiteElo "2546"]
[BlackElo "2443"]

1. e4 {[%clk 01:30:39]} {[%emt 00:00:20]} c5 {[%clk 01:28:48]} {[%emt
00:02:12]} 2. Nf3 {[%clk 01:30:58]} {[%emt 00:00:11]} d6 {[%clk 01:27:35]}
{[%emt 00:01:43]} 3. Bb5+ {[%clk 01:31:21]} {[%emt 00:00:08]} Nd7 {[%clk
01:26:13]} {[%emt 00:01:51]} 4. d4 {[%clk 01:31:43]} {[%emt 00:00:09]} cxd4
{[%clk 01:26:27]} {[%emt 00:00:16]} 5. Qxd4 {[%clk 01:32:05]} {[%emt 00:00:08]}
a6 {[%clk 01:26:38]} {[%emt 00:00:18]} 6. Bxd7+ {[%clk 01:32:29]} {[%emt
00:00:07]} Bxd7 {[%clk 01:26:58]} {[%emt 00:00:09]} 7. Nc3 {[%clk 01:32:55]}
{[%emt 00:00:04]} Rc8 {[%clk 01:26:25]} {[%emt 00:01:03]} 8. e5 {[%clk
01:32:34]} {[%emt 00:00:51]} dxe5 {[%clk 01:20:27]} {[%emt 00:06:27]} 9. Nxe5
{[%clk 01:32:54]} {[%emt 00:00:12]} Bc6 {[%clk 01:18:57]} {[%emt 00:01:59]} 10.
Qxd8+ {[%clk 01:31:21]} {[%emt 00:02:04]} Rxd8 {[%clk 01:19:14]} {[%emt
00:00:12]} 11. Nxc6 {[%clk 01:31:47]} {[%emt 00:00:05]} bxc6 {[%clk 01:19:34]}
{[%emt 00:00:09]} 12. Be3 {[%clk 01:28:56]} {[%emt 00:03:21]} e6 {[%clk
01:18:59]} {[%emt 00:01:05]} 13. Na4 {[%clk 01:27:55]} {[%emt 00:01:30]} Nf6
{[%clk 01:17:19]} {[%emt 00:02:12]} 14. Ke2 {[%clk 01:27:23]} {[%emt 00:01:01]}
Nd5 {[%clk 01:12:09]} {[%emt 00:05:40]} 15. Bd2 {[%clk 01:23:39]} {[%emt
00:04:13]} Bb4 {[%clk 01:08:37]} {[%emt 00:04:02]} 16. c3 {[%clk 01:20:30]}
{[%emt 00:03:40]} Bd6 {[%clk 01:08:14]} {[%emt 00:00:52]} 17. g3 {[%clk
01:20:01]} {[%emt 00:01:00]} Rb8 {[%clk 01:03:06]} {[%emt 00:05:38]} 18. Rad1
{[%clk 01:14:57]} {[%emt 00:05:34]} Ke7 {[%clk 00:58:18]} {[%emt 00:05:19]} 19.
c4 {[%clk 01:05:43]} {[%emt 00:09:44]} Nb6 {[%clk 00:53:09]} {[%emt 00:05:38]}
20. Nxb6 {[%clk 01:04:45]} {[%emt 00:01:29]} Rxb6 {[%clk 00:51:09]} {[%emt
00:02:28]} 21. Bc3 {[%clk 01:04:07]} {[%emt 00:01:08]} f6 {[%clk 00:49:14]}
{[%emt 00:02:26]} 22. Rd2 {[%clk 01:03:39]} {[%emt 00:00:58]} Rhb8 {[%clk
00:33:22]} {[%emt 00:16:21]} 23. Rhd1 {[%clk 00:59:12]} {[%emt 00:04:58]} c5
{[%clk 00:33:07]} {[%emt 00:00:46]} 24. b3 {[%clk 00:58:27]} {[%emt 00:01:14]}
Rc6 {[%clk 00:31:35]} {[%emt 00:02:02]} 25. f4 {[%clk 00:58:22]} {[%emt
00:00:35]} Rb7 {[%clk 00:29:49]} {[%emt 00:02:15]} 26. Kf3 {[%clk 00:58:18]}
{[%emt 00:00:35]} Bb8 {[%clk 00:22:09]} {[%emt 00:08:10]} 27. Rd8 {[%clk
00:50:04]} {[%emt 00:08:42]} Bd6 {[%clk 00:20:48]} {[%emt 00:01:53]} 28. Rh8
{[%clk 00:50:30]} {[%emt 00:00:04]} h6 {[%clk 00:20:42]} {[%emt 00:00:36]} 29.
g4 {[%clk 00:50:06]} {[%emt 00:00:54]} Rb8 {[%clk 00:13:50]} {[%emt 00:07:22]}
30. Rxd6 {[%clk 00:46:17]} {[%emt 00:04:19]} Rxd6 {[%clk 00:14:06]} {[%emt
00:00:14]} 31. Rxb8 {[%clk 00:46:25]} {[%emt 00:00:22]} Rd3+ {[%clk 00:14:21]}
{[%emt 00:00:15]} 32. Ke4 {[%clk 00:46:23]} {[%emt 00:00:32]} Rxc3 {[%clk
00:14:44]} {[%emt 00:00:08]} 33. Rb7+ {[%clk 00:46:33]} {[%emt 00:00:19]} Kd6
{[%clk 00:09:05]} {[%emt 00:06:09]} 34. Rb6+ {[%clk 00:46:23]} {[%emt
00:00:39]} Ke7 {[%clk 00:09:26]} {[%emt 00:00:10]} 35. f5 {[%clk 00:41:50]}
{[%emt 00:05:04]} exf5+ {[%clk 00:09:32]} {[%emt 00:00:22]} 36. gxf5 {[%clk
00:41:01]} {[%emt 00:01:20]} Rc2 {[%clk 00:09:43]} {[%emt 00:00:19]} 37. Rxa6
{[%clk 00:37:23]} {[%emt 00:04:08]} Re2+ {[%clk 00:07:56]} {[%emt 00:02:17]} 38.
Kd5 {[%clk 00:36:54]} {[%emt 00:00:59]} Re5+ {[%clk 00:08:15]} {[%emt
00:00:11]} 39. Kc6 {[%clk 00:37:22]} {[%emt 00:00:02]} Rxf5 {[%clk 00:08:36]}
{[%emt 00:00:09]} 40. Ra7+ {[%clk 00:37:43]} {[%emt 00:00:09]} Ke6 {[%clk
00:05:59]} {[%emt 00:03:07]} 41. Rxg7 {[%clk 00:36:24]} {[%emt 00:01:50]} Rf2
{[%clk 00:06:08]} {[%emt 00:00:21]} 42. a4 {[%clk 00:36:10]} {[%emt 00:00:43]}
Rxh2 {[%clk 00:06:16]} {[%emt 00:00:23]} 43. Kxc5 {[%clk 00:36:11]} {[%emt
00:00:29]} f5 {[%clk 00:05:06]} {[%emt 00:01:40]} 44. a5 {[%clk 00:35:02]}
{[%emt 00:01:38]} f4 {[%clk 00:04:55]} {[%emt 00:00:41]} 45. a6 {[%clk
00:33:52]} {[%emt 00:01:40]} Ra2 {[%clk 00:05:09]} {[%emt 00:00:16]} 46. Rg6+
{[%clk 00:32:23]} {[%emt 00:02:00]} Ke5 {[%clk 00:00:52]} {[%emt 00:04:47]} 47.
Rxh6 {[%clk 00:31:11]} {[%emt 00:01:42]} f3 {[%clk 00:01:10]} {[%emt 00:00:11]}
48. Kb5 {[%clk 00:27:53]} {[%emt 00:03:48]} Ra1 {[%clk 00:29:34]} {[%emt
00:02:06]} 49. Rh2 {[%clk 00:56:36]} {[%emt 00:01:47]} Kd4 {[%clk 00:29:53]}
{[%emt 00:00:11]} 50. c5 {[%clk 00:56:05]} {[%emt 00:01:01]} Rb1 {[%clk
00:28:50]} {[%emt 00:01:33]} 51. b4 {[%clk 00:52:37]} {[%emt 00:03:58]} Kc3
{[%clk 00:27:30]} {[%emt 00:01:50]} 52. Rh3 {[%clk 00:52:34]} {[%emt 00:00:33]}
Rxb4+ {[%clk 00:27:29]} {[%emt 00:00:30]} 53. Kc6 {[%clk 00:52:56]} {[%emt
00:00:09]} 1-0

[Event "Elitserien 2019/2020, round 1-3"]
[Site "Uppsala University, Gamla torget, Uppsala, Sweden"]
[Date "2019.10.20"]
[Round "3.10"]
[White "Grigorov, Grigor"]
[Black "Seo, Jung Min"]
[Result "1/2-1/2"]
[TimeControl "90 minutes for 40 moves + 30 minutes for the rest of the game + 30 seconds per move from move one."]
[WhiteTitle "GM"]
[BlackTitle "FM"]
[WhiteFideId "2907313"]
[BlackFideId "1734687"]
[WhiteElo "2504"]
[BlackElo "2437"]

1. d4 {[%clk 01:30:56]} {[%emt 00:00:03]} Nf6 {[%clk 01:30:51]} {[%emt
00:00:09]} 2. c4 {[%clk 01:31:19]} {[%emt 00:00:08]} b6 {[%clk 01:31:20]}
{[%emt 00:00:01]} 3. Nf3 {[%clk 01:31:33]} {[%emt 00:00:16]} Bb7 {[%clk
01:31:24]} {[%emt 00:00:26]} 4. g3 {[%clk 01:31:54]} {[%emt 00:00:08]} e6
{[%clk 01:30:54]} {[%emt 00:01:01]} 5. Bg2 {[%clk 01:32:11]} {[%emt 00:00:12]}
Bb4+ {[%clk 01:30:57]} {[%emt 00:00:28]} 6. Bd2 {[%clk 01:32:29]} {[%emt
00:00:11]} a5 {[%clk 01:30:26]} {[%emt 00:01:01]} 7. O-O {[%clk 01:32:45]}
{[%emt 00:00:14]} O-O {[%clk 01:30:02]} {[%emt 00:00:54]} 8. Bf4 {[%clk
01:32:16]} {[%emt 00:00:59]} Be7 {[%clk 01:28:05]} {[%emt 00:02:28]} 9. Qc2
{[%clk 01:31:09]} {[%emt 00:01:35]} Be4 {[%clk 01:25:27]} {[%emt 00:03:09]} 10.
Qc1 {[%clk 01:31:31]} {[%emt 00:00:08]} Bb7 {[%clk 01:23:26]} {[%emt 00:02:31]}
11. Rd1 {[%clk 01:31:03]} {[%emt 00:00:58]} d6 {[%clk 01:22:26]} {[%emt
00:01:31]} 12. Nc3 {[%clk 01:30:56]} {[%emt 00:00:36]} Ne4 {[%clk 01:19:48]}
{[%emt 00:03:09]} 13. Nxe4 {[%clk 01:30:54]} {[%emt 00:00:32]} Bxe4 {[%clk
01:20:16]} {[%emt 00:00:02]} 14. Qe3 {[%clk 01:31:11]} {[%emt 00:00:12]} Bb7
{[%clk 01:19:56]} {[%emt 00:00:51]} 15. Qd3 {[%clk 01:31:26]} {[%emt 00:00:14]}
Nd7 {[%clk 01:17:22]} {[%emt 00:03:05]} 16. e4 {[%clk 01:26:30]} {[%emt
00:05:24]} c5 {[%clk 01:09:55]} {[%emt 00:07:59]} 17. Bxd6 {[%clk 01:14:47]}
{[%emt 00:12:12]} Bxd6 {[%clk 01:09:47]} {[%emt 00:00:39]} 18. dxc5 {[%clk
01:15:11]} {[%emt 00:00:06]} Bxc5 {[%clk 00:56:43]} {[%emt 00:13:34]} 19. Qxd7
{[%clk 01:15:32]} {[%emt 00:00:09]} Bxe4 {[%clk 00:56:17]} {[%emt 00:00:57]} 20.
Ne5 {[%clk 01:02:53]} {[%emt 00:13:07]} Bxg2 {[%clk 00:54:31]} {[%emt
00:02:16]} 21. Qxd8 {[%clk 00:55:18]} {[%emt 00:08:06]} Rfxd8 {[%clk 00:54:00]}
{[%emt 00:01:01]} 22. Kxg2 {[%clk 00:55:24]} {[%emt 00:00:23]} Kf8 {[%clk
00:47:19]} {[%emt 00:07:11]} 23. Nc6 {[%clk 00:52:05]} {[%emt 00:03:49]}
1/2-1/2

[Event "Elitserien 2019/2020, round 1-3"]
[Site "Uppsala University, Gamla torget, Uppsala, Sweden"]
[Date "2019.10.20"]
[Round "3.11"]
[White "Lokander, Martin"]
[Black "Lindberg, Bo"]
[Result "1/2-1/2"]
[TimeControl "90 minutes for 40 moves + 30 minutes for the rest of the game + 30 seconds per move from move one."]
[WhiteTitle "IM"]
[BlackTitle "FM"]
[WhiteFideId "1709569"]
[BlackFideId "1705997"]
[WhiteElo "2396"]
[BlackElo "2390"]

1. d4 {[%clk 01:29:22]} {[%emt 00:01:37]} Nf6 {[%clk 01:29:15]} {[%emt
00:01:45]} 2. c4 {[%clk 01:27:04]} {[%emt 00:02:49]} e6 {[%clk 01:29:17]}
{[%emt 00:00:27]} 3. Nc3 {[%clk 01:27:30]} {[%emt 00:00:04]} Bb4 {[%clk
01:29:22]} {[%emt 00:00:25]} 4. e3 {[%clk 01:26:28]} {[%emt 00:01:33]} Ne4
{[%clk 01:23:12]} {[%emt 00:06:39]} 5. Qc2 {[%clk 01:23:35]} {[%emt 00:03:24]}
f5 {[%clk 01:23:13]} {[%emt 00:00:28]} 6. Bd3 {[%clk 01:22:18]} {[%emt
00:01:48]} O-O {[%clk 01:22:34]} {[%emt 00:01:08]} 7. Nge2 {[%clk 01:20:09]}
{[%emt 00:02:39]} b6 {[%clk 01:19:30]} {[%emt 00:03:34]} 8. a3 {[%clk
01:18:19]} {[%emt 00:02:21]} Bxc3+ {[%clk 01:19:07]} {[%emt 00:00:53]} 9. Nxc3
{[%clk 01:18:44]} {[%emt 00:00:05]} Nxc3 {[%clk 01:18:51]} {[%emt 00:00:46]} 10.
Qxc3 {[%clk 01:19:06]} {[%emt 00:00:08]} Bb7 {[%clk 01:18:58]} {[%emt
00:00:23]} 11. O-O {[%clk 01:19:19]} {[%emt 00:00:17]} d6 {[%clk 01:15:20]}
{[%emt 00:04:07]} 12. f3 {[%clk 01:13:53]} {[%emt 00:05:57]} Nd7 {[%clk
01:11:47]} {[%emt 00:04:01]} 13. b4 {[%clk 01:08:36]} {[%emt 00:05:49]} Qe7
{[%clk 00:54:13]} {[%emt 00:18:03]} 14. Bb2 {[%clk 01:07:21]} {[%emt 00:01:45]}
a5 {[%clk 00:49:15]} {[%emt 00:05:28]} 15. Qd2 {[%clk 01:04:49]} {[%emt
00:03:02]} e5 {[%clk 00:39:19]} {[%emt 00:10:26]} 16. Bc2 {[%clk 00:47:42]}
{[%emt 00:17:38]} Kh8 {[%clk 00:24:31]} {[%emt 00:15:17]} 17. Ba4 {[%clk
00:46:56]} {[%emt 00:01:16]} e4 {[%clk 00:21:45]} {[%emt 00:03:17]} 18. Bxd7
{[%clk 00:40:09]} {[%emt 00:07:17]} Qxd7 {[%clk 00:22:08]} {[%emt 00:00:06]} 19.
d5 {[%clk 00:39:48]} {[%emt 00:00:52]} axb4 {[%clk 00:08:41]} {[%emt 00:13:57]}
20. axb4 {[%clk 00:37:44]} {[%emt 00:02:34]} Rxa1 {[%clk 00:08:23]} {[%emt
00:00:48]} 21. Bxa1 {[%clk 00:38:05]} {[%emt 00:00:09]} exf3 {[%clk 00:06:06]}
{[%emt 00:02:47]} 22. Rxf3 {[%clk 00:38:06]} {[%emt 00:00:29]} Qe7 {[%clk
00:04:09]} {[%emt 00:02:27]} 23. b5 {[%clk 00:30:38]} {[%emt 00:07:57]} Bc8
{[%clk 00:04:22]} {[%emt 00:00:17]} 24. Bd4 {[%clk 00:26:17]} {[%emt 00:04:52]}
Bd7 {[%clk 00:02:32]} {[%emt 00:02:20]} 25. Rg3 {[%clk 00:26:08]} {[%emt
00:00:39]} Rf7 {[%clk 00:02:42]} {[%emt 00:00:19]} 26. Qf2 {[%clk 00:24:06]}
{[%emt 00:02:33]} Qe4 {[%clk 00:01:36]} {[%emt 00:01:35]} 27. h3 {[%clk
00:23:09]} {[%emt 00:01:28]} h6 {[%clk 00:01:31]} {[%emt 00:00:35]} 28. Rf3
{[%clk 00:20:37]} {[%emt 00:03:02]} Kh7 {[%clk 00:01:22]} {[%emt 00:00:38]} 29.
h4 {[%clk 00:17:27]} {[%emt 00:03:40]} Qg4 {[%clk 00:00:54]} {[%emt 00:00:58]}
30. Rf4 {[%clk 00:13:14]} {[%emt 00:04:44]} Qd1+ {[%clk 00:00:47]} {[%emt
00:00:36]} 31. Kh2 {[%clk 00:13:43]} {[%emt 00:00:02]} Re7 {[%clk 00:00:55]}
{[%emt 00:00:22]} 32. Rxf5 {[%clk 00:04:18]} {[%emt 00:09:55]} Bxf5 {[%clk
00:01:00]} {[%emt 00:00:24]} 33. Qxf5+ {[%clk 00:04:46]} {[%emt 00:00:03]} Kg8
{[%clk 00:01:08]} {[%emt 00:00:21]} 34. Qc8+ {[%clk 00:05:13]} {[%emt
00:00:02]} Kf7 {[%clk 00:01:11]} {[%emt 00:00:28]} 35. Qf5+ {[%clk 00:05:41]}
{[%emt 00:00:02]} Kg8 {[%clk 00:01:32]} {[%emt 00:00:09]} 36. Qc8+ {[%clk
00:06:09]} {[%emt 00:00:02]} Kf7 {[%clk 00:01:54]} {[%emt 00:00:08]} 37. Qf5+
{[%clk 00:06:36]} {[%emt 00:00:03]} 1/2-1/2

[Event "Elitserien 2019/2020, round 1-3"]
[Site "Uppsala University, Gamla torget, Uppsala, Sweden"]
[Date "2019.10.20"]
[Round "3.12"]
[White "Wedberg, Tom"]
[Black "Hauge, Lars Oskar"]
[Result "0-1"]
[TimeControl "90 minutes for 40 moves + 30 minutes for the rest of the game + 30 seconds per move from move one."]
[WhiteTitle "GM"]
[BlackTitle "IM"]
[WhiteFideId "1700073"]
[BlackFideId "1509276"]
[WhiteElo "2414"]
[BlackElo "2483"]

1. e4 {[%clk 01:30:58]} {[%emt 00:00:01]} e6 {[%clk 01:27:31]} {[%emt
00:03:29]} 2. d4 {[%clk 01:31:10]} {[%emt 00:00:18]} d5 {[%clk 01:27:56]}
{[%emt 00:00:06]} 3. Nc3 {[%clk 01:31:30]} {[%emt 00:00:09]} Nf6 {[%clk
01:26:07]} {[%emt 00:02:19]} 4. Bg5 {[%clk 01:31:31]} {[%emt 00:00:29]} Be7
{[%clk 01:22:40]} {[%emt 00:03:58]} 5. e5 {[%clk 01:31:43]} {[%emt 00:00:17]}
Nfd7 {[%clk 01:22:48]} {[%emt 00:00:22]} 6. Bxe7 {[%clk 01:30:56]} {[%emt
00:01:18]} Qxe7 {[%clk 01:22:57]} {[%emt 00:00:21]} 7. Qd2 {[%clk 01:30:39]}
{[%emt 00:00:47]} a6 {[%clk 01:20:21]} {[%emt 00:03:06]} 8. f4 {[%clk
01:30:49]} {[%emt 00:00:19]} c5 {[%clk 01:20:39]} {[%emt 00:00:12]} 9. Nf3
{[%clk 01:31:11]} {[%emt 00:00:08]} Nc6 {[%clk 01:21:03]} {[%emt 00:00:06]} 10.
dxc5 {[%clk 01:30:52]} {[%emt 00:00:49]} Nxc5 {[%clk 01:18:03]} {[%emt
00:03:30]} 11. O-O-O {[%clk 01:27:29]} {[%emt 00:03:52]} b5 {[%clk 01:14:52]}
{[%emt 00:03:42]} 12. Qe3 {[%clk 01:21:25]} {[%emt 00:06:34]} Qa7 {[%clk
01:07:40]} {[%emt 00:07:42]} 13. Kb1 {[%clk 01:07:06]} {[%emt 00:14:50]} Bd7
{[%clk 01:05:48]} {[%emt 00:02:21]} 14. Nd4 {[%clk 01:02:21]} {[%emt 00:05:15]}
b4 {[%clk 00:59:39]} {[%emt 00:06:41]} 15. Nxc6 {[%clk 00:56:56]} {[%emt
00:05:53]} Bxc6 {[%clk 00:59:26]} {[%emt 00:00:44]} 16. Ne2 {[%clk 00:57:18]}
{[%emt 00:00:07]} O-O {[%clk 00:43:22]} {[%emt 00:16:33]} 17. Nd4 {[%clk
00:53:53]} {[%emt 00:03:57]} Ne4 {[%clk 00:40:33]} {[%emt 00:03:18]} 18. Bd3
{[%clk 00:50:13]} {[%emt 00:04:09]} Rab8 {[%clk 00:39:49]} {[%emt 00:01:15]} 19.
Rde1 {[%clk 00:40:43]} {[%emt 00:09:59]} Ba8 {[%clk 00:39:10]} {[%emt
00:01:10]} 20. g4 {[%clk 00:37:40]} {[%emt 00:03:32]} Qc7 {[%clk 00:39:03]}
{[%emt 00:00:38]} 21. Rhf1 {[%clk 00:36:32]} {[%emt 00:01:38]} a5 {[%clk
00:37:15]} {[%emt 00:02:19]} 22. Nb5 {[%clk 00:29:07]} {[%emt 00:07:54]} Qb6
{[%clk 00:25:50]} {[%emt 00:11:56]} 23. Qh3 {[%clk 00:23:11]} {[%emt 00:06:24]}
f6 {[%clk 00:23:07]} {[%emt 00:03:15]} 24. Bxe4 {[%clk 00:17:21]} {[%emt
00:06:19]} dxe4 {[%clk 00:23:04]} {[%emt 00:00:33]} 25. Nd6 {[%clk 00:17:41]}
{[%emt 00:00:10]} fxe5 {[%clk 00:23:22]} {[%emt 00:00:12]} 26. fxe5 {[%clk
00:17:53]} {[%emt 00:00:18]} Qd4 {[%clk 00:23:09]} {[%emt 00:00:44]} 27. Qg3
{[%clk 00:10:32]} {[%emt 00:07:50]} e3 {[%clk 00:22:35]} {[%emt 00:01:04]} 28.
b3 {[%clk 00:09:31]} {[%emt 00:01:31]} Rxf1 {[%clk 00:20:15]} {[%emt 00:02:50]}
29. Rxf1 {[%clk 00:09:47]} {[%emt 00:00:14]} e2 {[%clk 00:20:28]} {[%emt
00:00:17]} 0-1

[Event "Elitserien 2019/2020, round 1-3"]
[Site "Uppsala University, Gamla torget, Uppsala, Sweden"]
[Date "2019.10.20"]
[Round "3.13"]
[White "Renman, Nils-Gustaf"]
[Black "Suarez Garcia, Carlos"]
[Result "1/2-1/2"]
[TimeControl "90 minutes for 40 moves + 30 minutes for the rest of the game + 30 seconds per move from move one."]
[WhiteTitle "IM"]
[BlackTitle "IM"]
[WhiteFideId "1700367"]
[BlackFideId "22230858"]
[WhiteElo "2340"]
[BlackElo "2437"]

1. d4 {[%clk 01:30:56]} {[%emt 00:00:04]} d6 {[%clk 01:31:02]} {[%emt
00:00:28]} 2. Nf3 {[%clk 01:31:14]} {[%emt 00:00:13]} g6 {[%clk 01:31:19]}
{[%emt 00:00:11]} 3. c4 {[%clk 01:31:27]} {[%emt 00:00:17]} Bg7 {[%clk
01:31:43]} {[%emt 00:00:07]} 4. Nc3 {[%clk 01:31:41]} {[%emt 00:00:15]} c5
{[%clk 01:32:08]} {[%emt 00:00:06]} 5. d5 {[%clk 01:31:30]} {[%emt 00:00:40]}
Bxc3+ {[%clk 01:32:33]} {[%emt 00:00:06]} 6. bxc3 {[%clk 01:31:53]} {[%emt
00:00:07]} f5 {[%clk 01:33:01]} {[%emt 00:00:03]} 7. Bg5 {[%clk 01:28:55]}
{[%emt 00:03:27]} Qa5 {[%clk 01:31:34]} {[%emt 00:01:56]} 8. Qc2 {[%clk
01:28:52]} {[%emt 00:00:35]} Nf6 {[%clk 01:29:43]} {[%emt 00:02:20]} 9. Bxf6
{[%clk 01:28:48]} {[%emt 00:00:34]} exf6 {[%clk 01:30:07]} {[%emt 00:00:06]} 10.
h4 {[%clk 01:28:15]} {[%emt 00:01:03]} h5 {[%clk 01:22:59]} {[%emt 00:07:38]}
11. e3 {[%clk 01:27:49]} {[%emt 00:00:56]} Nd7 {[%clk 01:20:19]} {[%emt
00:03:10]} 12. Nd2 {[%clk 01:27:42]} {[%emt 00:00:38]} Ne5 {[%clk 01:18:27]}
{[%emt 00:02:21]} 13. Be2 {[%clk 01:27:21]} {[%emt 00:00:51]} Bd7 {[%clk
01:17:25]} {[%emt 00:01:32]} 14. a4 {[%clk 01:25:22]} {[%emt 00:02:28]} Kf7
{[%clk 01:09:32]} {[%emt 00:08:24]} 15. g3 {[%clk 01:17:36]} {[%emt 00:08:18]}
a6 {[%clk 01:05:06]} {[%emt 00:04:55]} 16. O-O {[%clk 01:15:43]} {[%emt
00:02:22]} Rhb8 {[%clk 01:04:34]} {[%emt 00:01:02]} 17. f4 {[%clk 01:14:32]}
{[%emt 00:01:41]} Ng4 {[%clk 01:04:59]} {[%emt 00:00:05]} 18. Bxg4 {[%clk
01:14:38]} {[%emt 00:00:25]} hxg4 {[%clk 01:04:51]} {[%emt 00:00:37]} 19. e4
{[%clk 01:12:58]} {[%emt 00:02:10]} Qc7 {[%clk 00:50:49]} {[%emt 00:14:32]} 20.
h5 {[%clk 01:07:47]} {[%emt 00:05:41]} Rh8 {[%clk 00:47:07]} {[%emt 00:04:12]}
21. hxg6+ {[%clk 01:03:18]} {[%emt 00:04:59]} Kxg6 {[%clk 00:47:20]} {[%emt
00:00:17]} 22. Kg2 {[%clk 00:45:15]} {[%emt 00:18:34]} Rh3 {[%clk 00:47:43]}
{[%emt 00:00:06]} 23. Rh1 {[%clk 00:43:38]} {[%emt 00:02:07]} fxe4 {[%clk
00:45:18]} {[%emt 00:02:55]} 24. Nxe4 {[%clk 00:42:01]} {[%emt 00:02:07]} Bf5
{[%clk 00:44:35]} {[%emt 00:01:13]} 25. Rxh3 {[%clk 00:31:35]} {[%emt
00:10:55]} gxh3+ {[%clk 00:44:56]} {[%emt 00:00:10]} 26. Kh2 {[%clk 00:28:49]}
{[%emt 00:03:17]} Re8 {[%clk 00:44:15]} {[%emt 00:01:09]} 27. Re1 {[%clk
00:29:13]} {[%emt 00:00:06]} Qe7 {[%clk 00:44:39]} {[%emt 00:00:06]} 28. Qd1
{[%clk 00:29:27]} {[%emt 00:00:17]} Bxe4 {[%clk 00:38:41]} {[%emt 00:06:28]} 29.
Qg4+ {[%clk 00:29:48]} {[%emt 00:00:09]} Kf7 {[%clk 00:36:29]} {[%emt
00:02:41]} 30. Qh5+ {[%clk 00:26:46]} {[%emt 00:03:33]} Kf8 {[%clk 00:30:16]}
{[%emt 00:06:43]} 31. Qh8+ {[%clk 00:26:54]} {[%emt 00:00:21]} Kf7 {[%clk
00:30:41]} {[%emt 00:00:05]} 32. Qh5+ {[%clk 00:27:17]} {[%emt 00:00:07]} Kg8
{[%clk 00:28:06]} {[%emt 00:03:05]} 33. f5 {[%clk 00:27:00]} {[%emt 00:00:47]}
Qe5 {[%clk 00:26:30]} {[%emt 00:02:06]} 34. Qg6+ {[%clk 00:24:44]} {[%emt
00:02:47]} Kf8 {[%clk 00:26:42]} {[%emt 00:00:18]} 35. Rxe4 {[%clk 00:24:57]}
{[%emt 00:00:15]} 1/2-1/2